bitfinex/quotes_ETHUSD_20250602
["timestamp","ask_amount","ask_price","bid_price","bid_amount"]
[1748888401274,0.02,2552.9,2552.8,3.91726731]
[1748888404606,0.7754,2552.8,2552.6,3.91742545]
[1748888404803,10.14808446,2552.8,2551.7,0.7837]
[1748888405011,9.37268446,2552.5,2552.4,3.91776062]
[1748888405412,11.16489291,2552.8,2552.6,3.91748036]
[1748888405616,0.02,2552.9,2552.8,3.91726731]
[1748888406904,0.02,2552.9,2552.4,3.9178812]
[1748888407210,0.02,2552.9,2552.7,3.91734709]
[1748888407374,0.02,2552.9,2552.8,3.91726731]
[1748888408502,0.02,2552.9,2552.7,3.91733744]
[1748888408686,1.69592845,2552.9,2552.7,3.91733744]
[1748888409288,1.69592845,2552.9,2552.6,3.91749021]
[1748888409476,9.37268446,2552.8,2552.5,3.91760817]
[1748888409677,9.37268446,2552.8,2552.6,3.91756702]
[1748888410808,9.92268446,2552.8,2552.7,3.91742077]
[1748888410974,1.18432129,2552.8,2552.7,3.91742077]
[1748888411182,0.02,2552.9,2552.8,3.91726731]
[1748888411990,0.02,2552.9,2552.7,3.91733674]
[1748888412190,9.39268446,2552.9,2552.7,3.91733674]
[1748888412823,9.39268446,2552.9,2552.6,3.91753186]
[1748888413120,10.53903039,2552.9,2552.6,3.91753186]
[1748888413288,10.53903039,2552.9,2552.7,3.91734297]
[1748888414035,10.53903039,2552.9,2552.6,3.91752579]
[1748888414235,10.53903039,2552.9,2552.8,3.91726731]
[1748888414390,1.16634593,2552.9,2552.8,3.91726731]
[1748888414712,0.02,2552.9,2552.8,3.91726731]
[1748888416035,0.02,2552.9,2552.8,4.67026731]
[1748888416192,0.02,2552.9,2552.8,12.67026731]
[1748888423822,1.88446558,2553.7,2553.6,3.9160401]
[1748888425236,9.37679344,2553.8,2553.7,3.91588675]
[1748888425410,0.00410898,2553.8,2553.7,3.91588675]
[1748888425611,9.37679344,2553.8,2553.7,3.91588675]
[1748888426714,9.37679344,2553.8,2553.6,3.915967]
[1748888426965,0.7751,2553.7,2553.6,3.915967]
[1748888427270,0.7751,2553.5,2553.2,3.91655925]
[1748888427411,9.37268446,2553.4,2553.3,3.91650021]
[1748888428362,0.7751,2553.5,2553.4,3.91634683]
[1748888428567,0.80080898,2553.8,2553.7,3.91588675]
[1748888429352,0.00410898,2553.8,2553.7,3.91588675]
[1748888434028,9.37679344,2553.8,2553.7,3.91588675]
[1748888434224,0.00410898,2553.8,2553.7,3.91588675]
[1748888434639,0.83280898,2553.8,2553.6,3.91596112]
[1748888434954,0.83280898,2553.8,2553.7,3.91588675]
[1748888435164,0.00410898,2553.8,2553.7,3.91588675]
[1748888436356,0.00410898,2553.8,2553.7,4.77939206]
[1748888436886,0.00410898,2553.8,2553.7,4.81854629]
[1748888437086,0.00410898,2553.8,2553.7,12.81854629]
[1748888437254,0.00410898,2553.8,2553.7,12.77939206]
[1748888443812,0.00410898,2553.8,2553.7,13.53679206]
[1748888445071,0.00410898,2553.8,2553.7,17.64079206]
[1748888447109,0.00410898,2553.8,2553.7,18.19079206]
[1748888447707,0.00410898,2553.8,2553.7,19.29079206]
[1748888450022,0.00410898,2553.8,2553.7,19.67785852]
[1748888450445,0.025,2553.9,2553.8,13.22243341]
[1748888450667,0.025,2553.9,2553.8,14.82901335]
[1748888450970,0.025,2553.9,2553.8,15.15548514]
[1748888452145,0.025,2553.9,2553.8,15.1553528]
[1748888452559,0.025,2553.9,2553.8,29.72703726]
[1748888454849,0.02,2554.9,2554.8,3.91420072]
[1748888455143,0.02,2554.9,2554.8,16.76800072]
[1748888455309,0.02,2554.9,2554.8,12.67200072]
[1748888455514,0.02,2554.9,2554.8,16.76700072]
[1748888456534,0.02,2554.9,2554.8,26.68968518]
[1748888456736,0.02,2554.9,2554.8,28.29626512]
[1748888457821,0.02,2554.9,2554.8,28.49032725]
[1748888458046,0.02,2554.9,2554.8,28.29626512]
[1748888458317,0.02,2554.9,2554.8,29.39226512]
[1748888459867,0.02,2554.9,2554.8,29.39026512]
[1748888460237,5.31547746,2557.1,2554.8,29.39026512]
[1748888460438,5.31547746,2557.1,2556.8,3.91113892]
[1748888460656,5.31547746,2557.1,2556.8,23.35052338]
[1748888460827,0.20427015,2558.6,2558.0,3.92390414]
[1748888460828,0.39920986,2558.1,2558.0,3.92390414]
[1748888461160,0.20427015,2558.6,2558.5,3.90854016]
[1748888461332,0.0058916,2559.0,2558.9,11.90792918]
[1748888461522,0.0058916,2559.0,2558.9,11.92252918]
[1748888461723,0.0058916,2559.0,2558.9,16.12092918]
[1748888462151,0.0058916,2559.0,2558.9,12.73142918]
[1748888462337,5.38161353,2559.2,2559.1,11.90762377]
[1748888462537,5.91977488,2559.2,2559.1,11.90762377]
[1748888462937,5.38161353,2559.2,2559.1,11.90762377]
[1748888463167,1.38171353,2559.2,2559.1,8.39762377]
[1748888463367,1.38171353,2559.2,2559.1,11.90762377]
[1748888463928,1.38171353,2559.2,2559.1,12.40456453]
[1748888464338,0.44421809,2559.2,2559.1,16.95056453]
[1748888464540,0.44421809,2559.2,2559.1,16.95156453]
[1748888464734,0.44421809,2559.2,2559.1,12.40456453]
[1748888465939,0.44421809,2559.2,2559.1,12.94685132]
[1748888466140,0.44421809,2559.2,2559.1,12.40456453]
[1748888466450,5.615,2560.0,2559.5,3.90701308]
[1748888466659,5.615,2560.0,2559.5,16.45441283]
[1748888467363,5.615,2560.0,2559.5,17.21581283]
[1748888468258,5.615,2560.0,2559.5,11.90241283]
[1748888468432,7.001,2560.0,2559.5,3.90241283]
[1748888469231,1.386,2559.9,2559.5,3.90241283]
[1748888469536,5.615,2560.0,2559.5,3.90241283]
[1748888469752,1.386,2559.9,2559.5,3.90241283]
[1748888470191,5.615,2560.0,2559.5,3.90241283]
[1748888470332,1.386,2559.9,2559.5,3.90241283]
[1748888470533,7.0,2560.0,2559.5,3.90241283]
[1748888471143,0.7862,2559.7,2559.5,3.90241283]
[1748888472356,0.7862,2559.7,2559.1,0.49694076]
[1748888472558,7.72661686,2559.6,2559.1,3.90762221]
[1748888472759,9.99077284,2559.4,2559.0,3.90764923]
[1748888472943,1.76487728,2559.3,2558.9,3.90787243]
[1748888473143,1.76487728,2559.3,2558.5,0.03907585]
[1748888473474,1.76487728,2559.3,2558.8,3.90796057]
[1748888473663,1.76487728,2559.3,2558.9,3.90789018]
[1748888473973,0.7884,2559.2,2559.0,0.32621438]
[1748888474172,1.385,2559.1,2559.0,0.32621438]
[1748888474375,0.31724773,2559.1,2559.0,4.23399085]
[1748888474583,0.7884,2559.2,2559.1,3.90762377]
[1748888474866,0.7884,2559.2,2559.1,4.2338254]
[1748888475035,2.1734,2559.2,2559.1,4.2338254]
[1748888475269,0.7884,2559.2,2559.1,4.2338254]
[1748888475669,4.6480492,2559.6,2559.5,3.90701308]
[1748888475912,6.49785412,2559.6,2559.5,3.90701308]
[1748888476409,5.11285412,2559.6,2559.5,3.90701308]
[1748888476609,4.6480492,2559.6,2559.5,3.90701308]
[1748888476814,3.8197492,2559.6,2559.5,11.90701308]
[1748888480416,3.8197492,2559.6,2559.5,3.90701308]
[1748888480786,4.5707492,2559.6,2559.5,3.90701308]
[1748888480986,6.0269014,2559.6,2559.2,3.90745704]
[1748888481176,6.0269014,2559.6,2558.5,4.552]
[1748888481376,4.5707492,2559.6,2559.5,3.90701308]
[1748888482589,0.7513,2559.5,2558.5,3.90854016]
[1748888482804,9.99077284,2559.2,2559.1,3.90750311]
[1748888483010,10.74207284,2559.2,2558.2,4.552]
[1748888483215,10.74207284,2559.2,2559.1,3.90762377]
[1748888483700,10.74207284,2559.2,2557.9,4.549]
[1748888483896,10.74207284,2559.2,2559.1,3.90762377]
[1748888483897,0.7513,2559.2,2559.1,3.90762377]
[1748888485029,0.7513,2559.2,2559.0,3.90775918]
[1748888485030,13.81052204,2559.6,2559.0,3.90775918]
[1748888485212,3.8197492,2559.6,2559.5,3.90701308]
[1748888485752,2.41320342,2559.6,2559.5,3.90701308]
[1748888487136,0.53789633,2559.6,2559.5,3.90701308]
[1748888487942,5.615,2560.0,2559.9,3.90640259]
[1748888489911,2.33424126,2560.0,2559.9,3.90640259]
[1748888490106,2.33424126,2560.0,2559.9,8.43240259]
[1748888490344,2.33424126,2560.0,2559.9,16.98240259]
[1748888490555,2.33424126,2560.0,2559.9,17.79540259]
[1748888490726,2.33424126,2560.0,2559.9,17.24540259]
[1748888490912,2.33424126,2560.0,2559.9,16.43240259]
[1748888491233,2.33424126,2560.0,2559.9,11.90640259]
[1748888491436,2.33424126,2560.0,2559.9,3.90640259]
[1748888491636,2.33424126,2560.0,2559.9,11.90640259]
[1748888493049,0.45926818,2560.0,2559.9,11.90640259]
[1748888495717,5.34,2560.7,2560.0,8.0]
[1748888495917,1.53307728,2560.6,2560.5,3.9054872]
[1748888496140,5.34,2560.7,2560.6,3.90533468]
[1748888496360,6.725,2560.7,2560.6,3.90533468]
[1748888496655,5.34,2560.7,2560.6,3.90533468]
[1748888496814,5.34,2560.8,2560.2,11.90594484]
[1748888497015,5.34,2560.8,2560.2,8.0]
[1748888497209,5.34,2560.8,2559.6,4.71647395]
[1748888497210,9.99077284,2560.5,2559.6,0.8097]
[1748888497409,1.373,2560.4,2559.3,0.8097]
[1748888497637,9.99077284,2560.1,2559.0,0.8097]
[1748888497858,9.99077284,2560.2,2559.1,4.58406579]
[1748888498064,9.99077284,2560.6,2559.2,3.90747108]
[1748888498357,5.21554633,2560.5,2560.0,3.90614675]
[1748888498854,0.7669,2560.1,2560.0,3.90625]
[1748888499352,0.7669,2560.1,2559.9,3.90634089]
[1748888499555,0.7669,2560.1,2559.6,8.0]
[1748888499851,2.1399,2560.4,2560.3,3.90572489]
[1748888500010,3.4839713,2560.4,2560.1,3.90598629]
[1748888500412,3.4839713,2560.4,2560.1,3.90598961]
[1748888500713,0.7669,2560.4,2560.3,3.90579228]
[1748888501153,0.7669,2560.4,2560.2,3.90587537]
[1748888501316,9.99077284,2560.3,2560.2,3.90587537]
[1748888501880,9.99077284,2560.3,2559.5,4.545]
[1748888502103,9.99077284,2560.3,2559.6,8.0]
[1748888502248,1.46633636,2560.2,2560.0,11.9061849]
[1748888502437,1.46633636,2560.2,2559.3,4.543]
[1748888502643,1.46633636,2560.2,2559.9,3.90633801]
[1748888502965,1.46633636,2560.2,2559.6,0.03906299]
[1748888502966,10.77667284,2560.1,2559.6,0.03906299]
[1748888503175,9.99077284,2560.5,2560.2,3.90593913]
[1748888503490,2.1589,2560.4,2560.0,3.90617745]
[1748888503788,0.7859,2560.0,2559.8,3.90647885]
[1748888504092,0.7859,2560.0,2559.4,8.0]
[1748888504250,0.7859,2560.0,2559.5,0.0390654]
[1748888504431,0.8027,2559.6,2558.8,0.8113]
[1748888504632,0.8027,2559.6,2559.1,8.0]
[1748888504835,0.8027,2559.6,2559.5,3.90701308]
[1748888505279,0.8027,2560.0,2559.9,3.90640259]
[1748888505637,10.79347284,2560.6,2560.0,3.90621496]
[1748888505959,9.99077284,2560.2,2559.8,8.0]
[1748888506175,10.79347284,2560.2,2560.1,3.90609741]
[1748888506370,10.79347284,2560.2,2560.0,3.90614095]
[1748888506756,10.79347284,2560.2,2559.4,3.90716574]
[1748888506757,0.8027,2560.0,2558.6,4.70807223]
[1748888506955,9.99077284,2559.9,2559.7,3.90656058]
[1748888507267,9.99077284,2559.9,2559.5,3.9069454]
[1748888507650,9.99077284,2559.9,2559.5,3.90695175]
[1748888507848,13.8971976,2559.9,2559.3,3.90718982]
[1748888508180,0.8027,2559.7,2558.9,3.90792504]
[1748888508379,0.8027,2559.7,2559.4,3.90709496]
[1748888508689,0.8027,2559.7,2559.4,3.90709113]
[1748888509278,0.8027,2559.7,2559.3,3.90722946]
[1748888509455,0.8027,2559.7,2559.3,3.9072059]
[1748888509794,0.7783,2559.3,2558.3,0.8149]
[1748888509995,0.7783,2559.3,2559.2,3.90747108]
[1748888510646,9.99077284,2559.4,2559.2,3.90747108]
[1748888510847,2.1513,2560.3,2559.3,0.03907297]
[1748888511075,2.1513,2560.3,2559.9,3.90632764]
[1748888511444,6.05710684,2560.3,2559.8,3.90648241]
[1748888511948,3.90597693,2560.2,2559.7,3.90662396]
[1748888512286,0.8212,2559.9,2559.7,3.90662635]
[1748888512585,0.8212,2559.9,2559.7,3.9067034]
[1748888512796,0.8212,2559.9,2559.8,3.90655519]
[1748888513160,0.8212,2559.9,2559.5,8.0]
[1748888513463,0.8212,2559.9,2559.1,8.0]
[1748888513665,0.8212,2559.9,2559.6,3.90685698]
[1748888513859,0.8212,2559.9,2559.4,3.90710327]
[1748888514048,0.8212,2559.9,2559.2,8.0]
[1748888514248,0.8226,2559.5,2559.2,3.90737812]
[1748888514470,0.8226,2559.5,2559.4,3.90716574]
[1748888515051,0.8226,2559.5,2559.3,3.90723355]
[1748888515251,0.8226,2559.5,2559.2,3.90740653]
[1748888515691,0.8226,2559.5,2559.0,3.90773819]
[1748888515692,1.90393728,2559.5,2559.0,3.90770113]
[1748888515852,1.90393728,2559.5,2559.0,3.90765746]
[1748888516053,1.90393728,2559.5,2559.1,3.90759256]
[1748888516362,1.90393728,2559.5,2559.3,3.90721326]
[1748888516580,0.8226,2559.5,2559.2,3.90745864]
[1748888516979,0.8226,2559.5,2559.4,3.90716574]
[1748888517352,10.15368639,2559.5,2559.4,3.90716574]
[1748888517753,11.52768639,2559.5,2559.4,3.90716574]
[1748888518193,10.15368639,2559.5,2559.4,3.90716574]
[1748888518388,11.52768639,2559.5,2559.3,3.90723379]
[1748888518588,10.15368639,2559.5,2559.3,3.90724838]
[1748888518794,11.52768639,2559.5,2559.4,3.90716574]
[1748888519657,11.51068639,2559.9,2559.1,0.7693]
[1748888519856,11.51068639,2559.9,2559.7,3.90660638]
[1748888520175,0.55,2559.8,2558.8,0.7693]
[1748888520499,9.33108639,2559.4,2559.3,3.90722393]
[1748888520798,0.8056,2559.7,2558.8,8.0]
[1748888520799,10.13668639,2559.7,2558.8,8.0]
[1748888520958,11.51068639,2559.7,2559.6,3.90686044]
[1748888521158,10.13668639,2559.7,2559.5,3.90697837]
[1748888521491,12.57935503,2559.7,2559.5,3.90697837]
[1748888521699,0.38892991,2560.1,2559.6,3.90686044]
[1748888522016,0.8177,2560.0,2559.9,3.90640259]
[1748888522194,0.8177,2560.0,2559.4,3.94621878]
[1748888522360,0.8177,2560.0,2559.9,3.90640259]
[1748888523063,0.8177,2560.0,2559.8,3.90651057]
[1748888524196,9.33108639,2559.9,2559.7,3.9066406]
[1748888524416,9.33108639,2559.9,2559.3,3.90718921]
[1748888524417,13.83908639,2559.9,2559.3,3.90718921]
[1748888524703,9.33108639,2559.4,2559.3,3.90718921]
[1748888525300,1.374,2559.6,2559.4,3.9070133]
[1748888525595,0.8209,2559.8,2559.7,3.90670781]
[1748888526005,0.8209,2559.8,2559.6,3.90677286]
[1748888526576,0.8209,2559.8,2558.9,4.504]
[1748888526772,0.8209,2559.8,2559.1,8.0]
[1748888526963,0.8209,2559.8,2559.7,3.90670781]
[1748888528379,10.67208639,2560.0,2559.7,3.90670781]
[1748888528569,10.67208639,2560.0,2559.7,3.90665692]
[1748888528883,14.57839946,2560.0,2559.2,8.0]
[1748888529082,9.33108639,2559.7,2559.2,8.0]
[1748888529285,11.73271148,2560.0,2559.2,8.0]
[1748888529489,9.33108639,2560.0,2559.7,3.90663799]
[1748888529900,9.33108639,2560.0,2559.8,3.90648831]
[1748888530421,9.33108639,2560.0,2559.4,3.94621875]
[1748888530634,0.7579,2560.1,2559.9,3.90640259]
[1748888530782,0.7579,2560.1,2559.9,3.90631799]
[1748888531112,0.7579,2560.1,2559.8,3.90648411]
[1748888531334,9.33108639,2560.0,2559.9,3.90640259]
[1748888532354,9.33108639,2560.0,2559.8,3.90647404]
[1748888532509,9.33108639,2560.0,2559.4,8.0]
[1748888532708,9.33108639,2559.7,2558.5,3.90838775]
[1748888533026,1.00889864,2560.0,2559.9,3.90640259]
[1748888533027,11.68098503,2560.0,2559.9,3.90640259]
[1748888533217,10.33998503,2560.0,2559.9,3.90640259]
[1748888533427,9.33108639,2560.0,2559.9,3.90640259]
[1748888534235,1.18328343,2560.1,2560.0,3.90625]
[1748888534435,0.7924,2560.4,2560.3,3.90579228]
[1748888534646,2.1334,2560.4,2560.2,3.90592081]
[1748888534849,2.38604864,2560.4,2560.0,3.90612135]
[1748888535050,3.72704864,2560.4,2560.1,3.90602163]
[1748888535353,3.72704864,2560.4,2560.2,3.90584064]
[1748888535551,2.38604864,2560.4,2560.1,3.90601163]
[1748888535752,2.38604864,2560.4,2559.7,0.8093]
[1748888535753,3.72704864,2560.4,2560.2,3.90593182]
[1748888535964,1.59567815,2560.3,2560.2,3.90593182]
[1748888536269,0.38724648,2560.3,2560.2,3.90593182]
[1748888536448,1.341,2560.6,2560.0,3.94526001]
[1748888536751,5.34,2560.8,2560.7,3.90518217]
[1748888536752,5.72646511,2560.8,2560.7,3.90518217]
[1748888537112,11.71764651,2560.8,2560.0,0.8128]
[1748888537318,9.33108639,2560.6,2560.5,3.9054872]
[1748888538563,9.33108639,2560.6,2560.0,0.8128]
[1748888538564,10.13468639,2560.6,2560.0,0.8128]
[1748888538729,10.13468639,2560.6,2560.3,3.90569454]
[1748888539340,10.13468639,2560.6,2560.5,3.9054872]
[1748888539341,0.8036,2560.6,2560.5,3.9054872]
[1748888539542,1.51408604,2560.6,2560.4,3.90554914]
[1748888539748,9.33108639,2560.5,2560.4,3.90554914]
[1748888540890,0.8036,2560.6,2560.5,3.9054872]
[1748888541174,0.8036,2560.6,2560.2,3.90588044]
[1748888541477,9.33108639,2560.4,2560.2,3.90590537]
[1748888541621,9.33108639,2560.4,2560.3,3.90579228]
[1748888541822,9.33108639,2560.4,2559.8,0.7546]
[1748888542039,10.34455503,2560.4,2560.2,3.90592869]
[1748888542278,10.34455503,2560.4,2559.6,8.0]
[1748888542279,3.9060035,2560.2,2559.1,0.7546]
[1748888542581,9.33108639,2559.7,2559.6,3.90686044]
[1748888542881,9.33108639,2560.2,2560.0,3.90615122]
[1748888543027,1.14729864,2560.1,2559.5,3.90698148]
[1748888543222,0.8009,2560.3,2560.2,3.90594484]
[1748888543779,0.8009,2560.3,2559.8,3.90653046]
[1748888543780,0.8009,2560.3,2559.4,4.71505338]
[1748888543923,9.33108639,2559.8,2559.7,3.90670781]
[1748888544129,10.67208639,2560.1,2560.0,3.90625]
[1748888544678,9.33108639,2560.1,2560.0,3.90625]
[1748888544983,6.5859,2560.3,2560.2,3.90594484]
[1748888545193,9.33108639,2560.6,2560.2,3.90586407]
[1748888545338,9.33108639,2560.3,2560.1,3.90603804]
[1748888545527,9.33108639,2560.3,2560.2,3.90594484]
[1748888545932,0.8138,2560.7,2560.1,0.8202]
[1748888546171,10.04259243,2560.6,2559.8,0.8202]
[1748888546470,9.33108639,2560.3,2560.2,3.90594484]
[1748888546633,10.04259243,2560.6,2560.5,3.9054872]
[1748888546847,11.38359243,2560.6,2560.5,3.9054872]
[1748888547102,11.38359243,2560.6,2559.9,3.90625262]
[1748888547281,11.38359243,2560.6,2560.4,3.90562449]
[1748888547589,9.33108639,2560.6,2560.5,3.9054872]
[1748888547748,9.33108639,2560.6,2560.0,3.90612266]
[1748888547945,9.33108639,2560.6,2559.8,4.44]
[1748888548166,9.33108639,2560.6,2560.5,3.9054872]
[1748888548967,9.33108639,2560.6,2560.2,0.8202]
[1748888549284,9.33108639,2560.6,2560.5,3.9054872]
[1748888550395,3.90568718,2560.4,2559.9,3.90629822]
[1748888550556,9.33108639,2560.1,2560.0,3.90625]
[1748888551151,9.33108639,2560.4,2560.3,3.90573215]
[1748888552089,10.10358639,2560.7,2560.6,3.90533468]
[1748888552289,11.44458639,2560.7,2560.6,3.90533468]
[1748888552489,3.55818468,2560.7,2560.6,3.90533468]
[1748888552689,1.341,2560.7,2560.6,3.90533468]
[1748888553083,1.341,2560.7,2560.2,3.90584597]
[1748888553276,9.33108639,2560.5,2560.4,3.90563029]
[1748888553591,0.8192,2560.4,2559.9,3.90640259]
[1748888553799,5.2412,2560.4,2560.2,3.90592513]
[1748888553961,0.52412,2560.3,2560.2,3.90592513]
[1748888554288,0.52412,2560.3,2560.2,3.90594484]
[1748888554489,0.52412,2560.3,2559.5,0.7502]
[1748888554688,0.52412,2560.3,2560.1,3.90601627]
[1748888554878,0.52412,2560.3,2560.1,3.90608449]
[1748888555051,9.33108639,2560.2,2560.1,3.90608449]
[1748888556066,1.291,2560.4,2560.3,3.90579228]
[1748888556888,9.33108639,2560.5,2560.4,3.90563974]
[1748888557150,5.72861388,2560.8,2560.5,3.9054872]
[1748888557378,5.72861388,2560.8,2560.7,3.90518217]
[1748888557379,5.34,2560.8,2560.7,3.90518217]
[1748888557579,5.34,2561.1,2561.0,3.90472471]
[1748888559070,14.67108639,2561.1,2561.0,3.90472471]
[1748888559251,14.67108639,2561.1,2560.9,3.90484871]
[1748888559455,16.79872067,2561.1,2560.9,3.90483756]
[1748888559655,17.63192067,2561.1,2560.8,3.90493111]
[1748888560099,17.63192067,2561.1,2560.9,3.9048721]
[1748888560786,17.63192067,2561.1,2560.7,3.90507302]
[1748888560968,9.33108639,2560.8,2560.4,0.7709]
[1748888561172,9.33108639,2560.8,2560.6,3.9052078]
[1748888561371,10.62208639,2560.8,2560.7,3.90518217]
[1748888562304,9.33108639,2560.8,2560.7,3.90518217]
[1748888563899,9.33108639,2560.8,2560.2,8.0]
[1748888564099,9.33108639,2560.8,2560.3,3.90570157]
[1748888564276,9.33108639,2560.8,2560.7,3.90518217]
[1748888564809,5.34,2561.1,2561.0,3.90472471]
[1748888565109,9.69742505,2563.4,2561.3,0.2]
[1748888565110,0.20385798,2562.5,2561.3,0.2]
[1748888565403,0.20385798,2562.5,2562.4,11.90259132]
[1748888565611,5.6,2563.3,2563.0,3.90167772]
[1748888565810,5.6,2563.3,2563.0,16.41467772]
[1748888566108,4.836,2563.3,2563.1,8.0]
[1748888566262,3.5605921,2563.4,2563.3,11.90122108]
[1748888566467,3.01830531,2563.4,2563.3,16.57322108]
[1748888566663,3.01830531,2563.4,2563.3,13.80285509]
[1748888566872,3.01830531,2563.4,2563.3,17.18022108]
[1748888567175,0.20067296,2564.7,2563.3,17.18022108]
[1748888567176,0.7728,2565.8,2564.6,12.09771505]
[1748888567489,0.59564553,2565.4,2562.9,9.94988901]
[1748888567673,0.59564553,2565.4,2562.7,1.66]
[1748888567674,0.59564553,2565.4,2565.3,3.89817955]
[1748888568189,0.59564553,2565.4,2564.8,3.89893948]
[1748888568529,0.59564553,2565.4,2565.3,3.89817955]
[1748888569020,0.59564553,2565.4,2565.0,3.89850958]
[1748888569340,7.61645531,2565.5,2564.5,5.094]
[1748888569341,0.82121008,2565.3,2564.5,5.094]
[1748888569658,0.82121008,2565.3,2564.7,3.89899387]
[1748888569807,0.82121008,2565.3,2564.4,5.089]
[1748888570002,0.82121008,2565.3,2564.8,3.89891254]
[1748888570339,0.82121008,2565.3,2564.6,3.87152742]
[1748888570521,9.94988901,2565.2,2564.2,8.0]
[1748888570851,1.07710991,2565.1,2564.3,0.03898729]
[1748888570999,1.716,2565.2,2564.2,5.08]
[1748888571195,1.716,2565.2,2565.1,0.18285274]
[1748888573149,9.2163544,2565.5,2565.1,0.18285274]
[1748888573351,13.11425613,2565.5,2565.1,0.18285274]
[1748888573505,3.02642561,2565.4,2565.1,0.18285274]
[1748888573699,1.715,2565.7,2565.2,3.89820834]
[1748888573902,1.715,2565.8,2565.3,3.89807921]
[1748888574115,9.96988901,2566.0,2565.1,0.18285274]
[1748888574342,0.02,2566.0,2565.1,0.18285274]
[1748888574511,9.96988901,2566.0,2565.2,3.89833]
[1748888574699,9.96988901,2566.0,2565.1,4.08128964]
[1748888574700,3.10169213,2565.9,2565.1,4.08128964]
[1748888574901,6.99897162,2565.9,2565.1,0.18285274]
[1748888575098,6.99903999,2565.9,2565.1,0.18285274]
[1748888575427,13.84770129,2565.6,2565.1,0.18285274]
[1748888575629,9.94988901,2565.6,2565.1,0.18285274]
[1748888575960,1.38669213,2565.9,2565.1,0.18285274]
[1748888575961,13.84822052,2565.2,2565.1,0.18285274]
[1748888576446,14.61942052,2565.2,2565.1,0.18285274]
[1748888576643,3.89833151,2565.2,2565.1,0.18285274]
[1748888576816,4.66953151,2565.2,2565.1,0.18285274]
[1748888577015,3.89863591,2565.0,2564.2,3.89978694]
[1748888577345,0.38986359,2564.9,2564.1,3.89990471]
[1748888577513,0.38986359,2564.9,2564.4,3.89951507]
[1748888577719,1.715,2564.8,2564.3,3.89963786]
[1748888577918,1.715,2564.8,2563.8,3.90032474]
[1748888578119,1.715,2564.8,2563.7,0.766]
[1748888578330,0.21048636,2564.7,2563.8,3.90046025]
[1748888578536,0.21048636,2564.7,2564.3,3.89959526]
[1748888578904,0.21048636,2564.7,2564.0,3.90001643]
[1748888579101,0.21048636,2564.7,2563.8,3.90046025]
[1748888579300,0.21048636,2564.7,2564.3,3.89960405]
[1748888579559,0.21048636,2564.7,2563.7,0.766]
[1748888579855,3.89863547,2565.0,2564.3,3.8996471]
[1748888580024,3.89886427,2564.9,2564.3,3.89968829]
[1748888580344,3.8988755,2564.9,2564.3,3.8996286]
[1748888580641,3.89900135,2564.8,2564.3,3.89961699]
[1748888580847,9.94988901,2564.8,2563.7,12.66659905]
[1748888581019,0.9949889,2564.7,2564.3,3.89955146]
[1748888581219,0.9949889,2564.7,2563.7,0.766]
[1748888581418,0.8214,2564.4,2563.8,3.90034151]
[1748888581619,3.89977244,2564.3,2562.9,4.67587898]
[1748888581846,3.89993926,2564.2,2563.7,3.90059302]
[1748888582164,2.10399393,2564.1,2563.2,3.90137328]
[1748888582349,0.8214,2564.4,2563.6,0.7721]
[1748888582660,0.9949889,2564.7,2564.1,3.89995959]
[1748888582825,0.9949889,2564.7,2563.6,0.7721]
[1748888583155,9.94988901,2564.5,2563.7,3.90056579]
[1748888583466,0.7753,2564.2,2563.6,3.90076374]
[1748888583664,2.4893,2564.2,2563.5,3.90091671]
[1748888583835,2.4893,2564.2,2563.9,3.9002315]
[1748888584030,2.4893,2564.2,2564.0,3.9000586]
[1748888584250,2.73823,2564.2,2563.9,3.90019239]
[1748888584417,2.73823,2564.2,2563.9,3.90022991]
[1748888584617,2.73823,2564.2,2563.6,0.03900267]
[1748888584819,0.24893,2564.2,2563.3,3.90112857]
[1748888585072,0.7782,2564.6,2563.4,0.03899978]
[1748888585228,1.714,2564.6,2564.5,3.89939559]
[1748888585427,1.714,2564.6,2564.4,3.89949144]
[1748888585625,8.89188955,2564.9,2564.4,3.89949144]
[1748888585626,1.714,2564.9,2564.5,3.89935475]
[1748888585819,5.61282467,2564.9,2564.4,3.89944864]
[1748888586020,1.13840247,2564.8,2564.4,3.89944864]
[1748888586220,1.13840247,2564.8,2564.5,3.89939228]
[1748888586424,1.13840247,2564.8,2564.4,3.89943491]
[1748888586859,1.13840247,2564.8,2564.5,3.8992634]
[1748888587163,1.13840247,2564.8,2564.5,3.89935034]
[1748888587363,1.13840247,2564.8,2564.7,3.89909151]
[1748888587738,1.13840247,2564.8,2564.5,3.89933457]
[1748888587739,2.4392,2565.0,2562.9,3.90169871]
[1748888587961,3.89902096,2564.8,2564.3,3.89969222]
[1748888588124,9.94988901,2564.7,2563.9,0.7742]
[1748888588320,3.899362,2564.6,2564.1,3.89995638]
[1748888588527,9.94988901,2564.7,2564.1,3.8999239]
[1748888588841,4.89433684,2564.6,2564.1,3.8999337]
[1748888589038,3.89946731,2564.5,2564.0,3.90012391]
[1748888589352,9.94988901,2564.3,2563.2,0.7553]
[1748888589669,9.94988901,2564.3,2563.9,3.90016276]
[1748888589862,9.94988901,2564.3,2564.0,3.90006108]
[1748888590066,1.0767689,2564.2,2563.2,0.7553]
[1748888590382,8.86009558,2564.1,2563.6,3.90066137]
[1748888590528,5.56117624,2564.0,2563.6,3.90066137]
[1748888590729,1.661,2564.0,2563.3,3.90112283]
[1748888591084,0.8078,2563.8,2563.0,3.94062755]
[1748888591232,0.8078,2563.8,2562.9,0.7742]
[1748888591425,9.94988901,2563.4,2562.5,3.90238697]
[1748888591640,14.90088901,2563.4,2562.4,4.6767389]
[1748888591855,3.90137328,2563.2,2562.4,0.7742]
[1748888592076,3.90137328,2563.2,2562.4,4.67674998]
[1748888592077,3.9016164,2563.1,2562.4,4.67674998]
[1748888592239,0.7722,2563.3,2562.4,0.7742]
[1748888592444,0.7722,2563.3,2562.2,3.90289594]
[1748888592445,6.5133089,2563.2,2562.2,3.90289594]
[1748888592778,1.661,2563.1,2562.6,3.90220728]
[1748888592981,1.661,2563.1,2562.3,3.90265164]
[1748888593143,1.661,2563.1,2562.2,3.90285581]
[1748888593345,1.661,2563.1,2562.3,0.35826698]
[1748888593669,3.90224931,2562.7,2562.2,0.03902376]
[1748888593832,3.90224931,2562.7,2562.1,3.90295058]
[1748888593833,4.65232789,2562.7,2562.1,3.90295058]
[1748888594036,4.65237207,2562.7,2562.1,3.9029635]
[1748888594387,3.90229288,2562.6,2561.7,0.76]
[1748888594676,3.90228674,2562.6,2561.9,3.90329926]